bitfinex/quotes_SOLUSD_20250722
["timestamp","ask_amount","ask_price","bid_price","bid_amount"]
[1753161715826,7.98513928,198.54,198.48,7.30513928]
[1753161716034,0.68,198.54,198.48,7.30513928]
[1753161716249,5.03693744,198.54,198.48,7.30513928]
[1753161716425,5.03693744,198.54,198.49,7.30513928]
[1753161716830,5.71693744,198.54,198.49,7.30513928]
[1753161717134,5.71693744,198.54,198.48,7.97513928]
[1753161717649,5.03653264,198.55,198.49,7.30513928]
[1753161718053,35.48234505,198.57,198.5,7.30513928]
[1753161718618,35.48234505,198.57,198.5,12.34281626]
[1753161718825,7.30513928,198.55,198.49,7.30513928]
[1753161719424,0.68,198.56,198.5,7.30513928]
[1753161719922,5.71646291,198.56,198.5,7.30513928]
[1753161720125,61.3936919,198.63,198.49,5.03803223]
[1753161720126,0.68,198.62,198.55,7.30513928]
[1753161720325,6.3607,198.67,198.61,7.30513928]
[1753161720544,7.30513928,198.7,198.63,7.30513928]
[1753161720748,7.30513928,198.66,198.6,7.30513928]
[1753161720952,7.30513928,198.61,198.52,0.67]
[1753161721135,16.78468397,198.59,198.5,7.30513928]
[1753161721331,6.4845,198.62,198.55,7.30513928]
[1753161721332,7.30513928,198.61,198.55,7.30513928]
[1753161721546,13.78963928,198.62,198.55,7.30513928]
[1753161721728,7.98513928,198.63,198.56,7.30513928]
[1753161721928,7.98513928,198.63,198.56,12.34127325]
[1753161722230,7.1645,198.67,198.6,7.30513928]
[1753161722455,7.1645,198.67,198.59,26.67]
[1753161722755,7.1645,198.67,198.61,7.30513928]
[1753161723630,7.1645,198.67,198.6,7.30513928]
[1753161723834,14.46963928,198.67,198.6,7.30513928]
[1753161724048,14.46963928,198.67,198.61,5.0349932]
[1753161724256,0.68,198.7,198.62,7.30513928]
[1753161724757,0.06,198.71,198.65,7.30513928]
[1753161724955,0.06,198.71,198.67,7.30513928]
[1753161725342,0.06,198.71,198.67,7.97513928]
[1753161726167,0.06,198.71,198.68,5.03321924]
[1753161726377,0.06,198.71,198.66,5.03372596]
[1753161726662,0.06,198.71,198.66,18.28804086]
[1753161726867,0.06,198.71,198.68,7.30513928]
[1753161727162,0.06,198.71,198.69,7.30513928]
[1753161727367,0.06,198.71,198.68,7.30513928]
[1753161727669,0.06,198.71,198.66,5.70372596]
[1753161727892,0.06,198.71,198.67,0.67]
[1753161728046,0.06,198.71,198.67,5.03329144]
[1753161728359,0.72,198.71,198.66,5.03369528]
[1753161728942,7.30513928,198.7,198.64,0.72]
[1753161729145,7.96513928,198.7,198.64,0.72]
[1753161729347,7.96513928,198.7,198.64,5.03419314]
[1753161729555,7.96513928,198.7,198.63,7.30513928]
[1753161729964,7.30513928,198.69,198.63,5.03443286]
[1753161730152,7.30513928,198.68,198.61,43.51498668]
[1753161730355,7.30513928,198.68,198.61,50.82012596]
[1753161730533,7.30513928,198.69,198.62,7.30513928]
[1753161730952,7.96513928,198.7,198.63,7.30513928]
[1753161731179,7.30513928,198.67,198.61,37.76]
[1753161731339,0.66,198.69,198.61,42.79493372]
[1753161731540,7.30513928,198.68,198.61,50.100073]
[1753161732270,12.99835342,198.69,198.62,7.30513928]
[1753161732473,7.30513928,198.66,198.61,37.76]
[1753161732762,5.03321414,198.69,198.59,26.0]
[1753161732763,7.96513928,198.65,198.59,26.0]
[1753161733063,7.96513928,198.65,198.59,31.03549658]
[1753161733365,7.30513928,198.63,198.56,50.08115139]
[1753161733738,5.69274018,198.7,198.62,7.30513928]
[1753161733936,7.30513928,198.68,198.61,8.02513928]
[1753161734235,12.33861187,198.67,198.6,7.30513928]
[1753161734671,5.03295876,198.7,198.63,7.30513928]
[1753161734879,6.5457,198.71,198.65,7.30513928]
[1753161734880,7.2057,198.71,198.65,7.30513928]
[1753161735172,5.75254936,198.71,198.65,7.30513928]
[1753161735403,7.30513928,198.69,198.61,26.0]
[1753161735565,7.30513928,198.67,198.6,7.30513928]
[1753161735944,7.30513928,198.61,198.54,8.02513928]
[1753161736254,12.34015778,198.61,198.55,7.74883381]
[1753161736460,12.34015778,198.61,198.55,2.71235173]
[1753161737247,7.30513928,198.6,198.55,2.71235173]
[1753161737471,7.96513928,198.59,198.55,2.71235173]
[1753161737766,7.30513928,198.56,198.55,2.71235173]
[1753161737937,7.96513928,198.56,198.55,2.71235173]
[1753161738143,13.00140035,198.56,198.55,2.71235173]
[1753161738339,29.78608432,198.56,198.55,2.71235173]
[1753161740979,22.48094504,198.56,198.55,2.71235173]
[1753161741282,5.69626107,198.56,198.55,2.71235173]
[1753161741486,13.00140035,198.56,198.55,2.71235173]
[1753161742780,36.21998432,198.56,198.55,2.71235173]
[1753161743853,7.30513928,198.56,198.55,2.71235173]
[1753161744164,12.34121278,198.57,198.55,2.71235173]
[1753161744365,5.0360735,198.57,198.55,2.71235173]
[1753161744555,7.30513928,198.56,198.55,2.71235173]
[1753161744760,7.96513928,198.56,198.55,2.71235173]
[1753161745471,37.72,198.6,198.55,2.71235173]
[1753161745654,7.30513928,198.58,198.55,2.71235173]
[1753161745858,7.30513928,198.59,198.55,2.71235173]
[1753161746089,7.30513928,198.56,198.55,2.71235173]
[1753161746384,29.78608432,198.56,198.55,2.71235173]
[1753161751485,7.30513928,198.56,198.55,2.71235173]
[1753161752092,0.66,198.59,198.55,2.71235173]
[1753161752267,7.30513928,198.59,198.55,7.74883047]
[1753161752458,7.30513928,198.6,198.55,2.71235173]
[1753161752862,7.30513928,198.59,198.55,2.71235173]
[1753161753195,7.30513928,198.57,198.55,2.71235173]
[1753161753370,7.96513928,198.57,198.55,2.71235173]
[1753161753767,7.30513928,198.56,198.55,2.71235173]
[1753161753978,7.96513928,198.56,198.55,2.71235173]
[1753161755162,0.66,198.6,198.5,13.09268727]
[1753161755371,6.176,198.61,198.54,7.30513928]
[1753161755585,7.30513928,198.62,198.55,7.30513928]
[1753161756287,5.03403808,198.65,198.56,5.03626107]
[1753161756471,15.15,198.75,198.61,7.30513928]
[1753161756472,0.66,198.7,198.61,7.30513928]
[1753161756675,7.36513928,198.71,198.62,0.72]
[1753161757271,7.36513928,198.71,198.65,7.30513928]
[1753161757592,0.06,198.71,198.69,7.30513928]
[1753161757760,0.06,198.71,198.7,8.02513928]
[1753161758401,0.06,198.71,198.7,13.05785191]
[1753161758780,0.06,198.78,198.74,7.30513928]
[1753161759298,0.06,198.78,198.74,8.02513928]
[1753161760390,0.06,198.78,198.74,13.05683898]
[1753161761703,0.06,198.78,198.72,5.03208751]
[1753161761879,0.06,198.78,198.74,7.30513928]
[1753161762394,0.06,198.78,198.74,8.02513928]
[1753161762577,0.06,198.78,198.74,13.05683898]
[1753161763093,0.06,198.78,198.73,26.0]
[1753161763296,7.36513928,198.78,198.72,7.30513928]
[1753161763602,7.36513928,198.78,198.71,7.30513928]
[1753161764098,0.06,198.78,198.73,7.30513928]
[1753161764591,0.06,198.78,198.72,0.72]
[1753161764592,0.06,198.78,198.74,7.30513928]
[1753161764792,0.06,198.78,198.74,8.02513928]
[1753161766673,0.06,198.78,198.74,39.05683898]
[1753161766873,0.06,198.78,198.77,26.0]
[1753161767081,0.06,198.78,198.77,33.30513928]
[1753161767298,0.06,198.78,198.77,34.02513928]
[1753161767901,0.06,198.78,198.77,33.45521828]
[1753161768193,0.06,198.78,198.77,71.07521828]
[1753161768998,0.06,198.78,198.77,37.62]
[1753161769375,0.06,198.78,198.74,0.72]
[1753161769606,0.06,198.78,198.74,7.30513928]
[1753161769771,0.06,198.78,198.77,7.30513928]
[1753161770202,0.06,198.78,198.77,45.62513928]
[1753161770405,0.06,198.83,198.8,26.0]
[1753161770577,0.06,198.83,198.82,7.30513928]
[1753161770778,0.06,198.83,198.82,37.6]
[1753161770999,8.06513928,198.83,198.77,26.0]
[1753161771298,7.30513928,198.79,198.73,44.90513928]
[1753161771516,7.30513928,198.81,198.74,7.30513928]
[1753161771800,7.30513928,198.8,198.73,44.90513928]
[1753161772011,0.06,198.78,198.76,7.30513928]
[1753161772208,0.06,198.78,198.75,26.0]
[1753161772209,0.06,198.83,198.8,26.0]
[1753161772375,0.06,198.83,198.82,7.30513928]
[1753161772811,0.06,198.83,198.82,8.02513928]
[1753161772984,0.06,198.83,198.82,13.05481436]
[1753161775179,0.06,198.83,198.82,5.74967508]
[1753161775379,0.06,198.83,198.82,13.05481436]
[1753161778913,0.06,198.83,198.78,5.75068719]
[1753161779209,0.06,198.83,198.81,7.30513928]
[1753161779513,0.06,198.83,198.82,7.30513928]
[1753161779701,0.76,198.83,198.79,37.56]
[1753161779892,0.76,198.83,198.79,44.86513928]
[1753161780512,0.7,198.82,198.79,37.56]
[1753161780812,0.06,198.83,198.75,5.75122178]
[1753161780813,0.7,198.81,198.76,7.30513928]
[1753161781318,0.7,198.8,198.76,7.30513928]
[1753161782017,12.41635255,198.83,198.77,7.30513928]
[1753161782197,0.06,198.83,198.8,7.30513928]
[1753161782401,0.06,198.83,198.78,63.56]
[1753161782402,0.06,198.83,198.82,7.30513928]
[1753161782884,0.06,198.83,198.82,8.02513928]
[1753161783088,0.06,198.83,198.82,13.05481436]
[1753161783283,0.06,198.83,198.82,38.33481436]
[1753161783507,0.06,198.83,198.82,39.05481436]
[1753161783703,0.06,198.83,198.82,13.05481436]
[1753161785090,0.06,198.83,198.82,7.30513928]
[1753161785291,0.06,198.83,198.81,63.56]
[1753161785496,0.06,198.83,198.81,37.56]
[1753161785725,0.06,198.83,198.8,7.30513928]
[1753161785901,0.06,198.83,198.82,7.30513928]
[1753161786104,0.06,198.83,198.82,44.84513928]
[1753161786609,0.06,198.83,198.82,37.54]
[1753161787726,0.06,198.83,198.82,49.87481436]
[1753161787910,0.06,198.83,198.82,50.59481436]
[1753161788705,0.06,198.86,198.85,26.0]
[1753161788903,0.1,198.98,198.89,26.0]
[1753161789096,0.1,198.98,198.97,7.30513928]
[1753161789300,0.1,198.98,198.97,49.85102257]
[1753161789522,0.1,198.98,198.97,50.57102257]
[1753161789706,0.1,198.98,198.97,7.30513928]
[1753161790724,0.1,198.98,198.97,8.02513928]
[1753161791099,0.1,198.98,198.97,5.74588329]
[1753161791298,11.36850312,199.08,199.0,26.0]
[1753161791514,5.7026161,199.1,199.06,10.8205647]
[1753161791713,18.8894647,199.13,199.09,10.8205647]
[1753161791714,8.0689,199.13,199.09,10.8205647]
[1753161791914,7.2371,199.13,199.09,10.8205647]
[1753161792723,0.68,199.12,199.09,10.8205647]
[1753161793216,0.68,199.12,199.07,37.52]
[1753161793424,0.68,199.12,199.09,10.8205647]
[1753161793729,10.8205647,199.1,198.99,0.68]
[1753161794032,10.8205647,199.05,198.98,37.5]
[1753161794200,0.68,199.04,199.01,10.8205647]
[1753161794398,11.5005647,199.03,198.91,0.68]
[1753161794599,10.8205647,199.01,198.94,10.8205647]
[1753161794825,15.84594285,198.99,198.93,10.8205647]
[1753161795026,0.68,198.98,198.92,48.3205647]
[1753161795217,0.68,198.98,198.92,37.5]
[1753161795417,0.68,198.98,198.93,10.8205647]
[1753161795932,0.68,198.97,198.93,10.8205647]
[1753161796130,0.68,198.97,198.89,37.5]
[1753161796131,0.68,198.96,198.9,10.8205647]
[1753161796317,25.11174727,199.11,198.91,0.68]
[1753161796514,10.8205647,198.95,198.84,38.7316275]
[1753161796719,5.02689388,198.93,198.88,10.8205647]
[1753161796908,0.68,198.94,198.91,10.8205647]
[1753161797113,5.02639255,198.95,198.91,10.8205647]
[1753161797317,5.02639255,198.95,198.89,48.3005647]
[1753161797827,11.5005647,198.94,198.89,37.48]
[1753161798127,0.68,198.93,198.86,63.48]
[1753161798344,0.68,198.93,198.87,10.8205647]
[1753161798519,0.68,198.93,198.88,10.8205647]
[1753161798720,5.02739932,198.91,198.88,10.8205647]
[1753161798943,10.8205647,198.95,198.88,10.8205647]
[1753161799314,10.8205647,198.93,198.86,48.3005647]
[1753161799502,10.8205647,198.91,198.84,10.8205647]
[1753161799708,10.8205647,198.89,198.82,48.3005647]
[1753161799910,10.8205647,198.91,198.85,10.8205647]
[1753161800137,16.78468397,198.97,198.86,37.48]
[1753161800416,10.8205647,198.96,198.89,10.8205647]
[1753161800811,10.8205647,198.96,198.86,37.48]
[1753161800812,10.8205647,198.97,198.9,10.8205647]
[1753161801022,11.5005647,198.96,198.9,10.8205647]
[1753161801223,11.5005647,198.95,198.88,10.8205647]
[1753161801622,0.68,198.95,198.89,10.8205647]
[1753161801831,0.68,198.95,198.87,26.0]
[1753161802050,0.68,198.95,198.9,10.8205647]
[1753161802345,0.68,198.95,198.89,10.8205647]
[1753161802510,0.68,198.95,198.9,10.8205647]
[1753161802708,24.3966075,198.98,198.92,10.8205647]
[1753161802908,24.3966075,198.98,198.88,5.74809499]
[1753161803138,35.2171722,198.98,198.92,10.8205647]
[1753161804112,35.2171722,198.98,198.93,10.8205647]
[1753161804113,11.83253071,198.98,198.93,10.8205647]
[1753161804319,11.83253071,198.98,198.95,10.8205647]
[1753161804536,11.15253071,198.98,198.96,10.8205647]
[1753161804723,0.68,199.02,198.97,10.8205647]
[1753161804927,0.68,199.02,198.98,10.8205647]
[1753161805432,5.02436818,199.03,198.93,0.72]
[1753161805730,10.8205647,198.95,198.89,10.8205647]
[1753161805924,10.8205647,198.92,198.83,0.72]
[1753161806108,5.02738698,198.92,198.86,10.8205647]
[1753161806314,5.70738698,198.92,198.86,10.8205647]
[1753161806620,5.70738698,198.92,198.87,10.8205647]
[1753161806823,5.70738698,198.92,198.88,10.8205647]
[1753161807740,0.68,198.91,198.86,10.8205647]
[1753161807925,0.68,198.9,198.85,10.8205647]
[1753161808236,0.68,198.9,198.83,38.2]
[1753161808237,5.02738698,198.92,198.86,10.8205647]
[1753161808437,25.55508889,199.12,198.86,10.8205647]
[1753161808438,5.02487312,199.01,198.91,10.8205647]
[1753161808641,8.5781,199.04,199.0,10.8205647]
[1753161808836,8.5781,199.04,198.97,37.46]
[1753161808837,5.02416237,199.04,198.97,37.46]
[1753161809024,11.5005647,199.03,198.96,10.8205647]
[1753161809411,0.68,199.03,198.99,10.8205647]
[1753161809615,10.8205647,199.06,198.96,0.72]
[1753161809616,5.02380657,199.06,198.96,0.72]
[1753161809814,5.02380657,199.06,199.01,10.8205647]
[1753161810039,10.8205647,199.04,198.95,37.46]
[1753161810220,0.68,199.03,198.97,10.8205647]
[1753161811228,10.8205647,199.02,198.96,10.8205647]
[1753161811717,5.02487312,199.01,198.96,10.8205647]
[1753161811924,5.70487312,199.01,198.96,10.8205647]
[1753161812242,5.02487312,199.01,198.97,10.8205647]
[1753161812833,5.02461691,199.03,198.99,10.8205647]
[1753161813027,5.02461691,199.03,199.0,10.8205647]
[1753161813232,5.02361097,199.06,199.0,38.18]
[1753161813544,5.02361097,199.06,199.0,37.46]
[1753161813726,5.02361097,199.06,199.01,10.8205647]
[1753161813936,0.06,199.07,199.02,0.72]
[1753161814129,0.06,199.07,199.05,10.8205647]
[1753161814436,0.06,199.07,199.02,0.72]
[1753161814437,0.06,199.07,199.04,10.8205647]
[1753161814639,5.08346455,199.07,199.04,10.8205647]
[1753161814940,5.08346455,199.07,199.0,37.46]
[1753161815147,0.68,199.06,199.01,10.8205647]
[1753161815830,5.70361097,199.06,199.01,10.8205647]
[1753161816023,5.02361097,199.06,199.02,10.8205647]
[1753161816223,0.06,199.07,199.05,10.8205647]
[1753161816529,0.06,199.07,199.06,10.8205647]
[1753161816737,0.06,199.07,199.06,11.5405647]
[1753161819037,0.06,199.07,199.06,37.44]
[1753161819243,0.06,199.07,199.06,48.9605647]
[1753161820034,0.06,199.07,199.06,53.98417567]
[1753161822244,0.06,199.07,199.03,0.7]
[1753161822448,0.06,199.07,199.05,10.8205647]
[1753161822839,0.06,199.07,199.04,37.42]
[1753161823039,0.06,199.07,199.06,10.8205647]
[1753161823449,0.06,199.07,199.06,11.5205647]
[1753161824236,0.06,199.07,199.06,16.54417567]
[1753161825343,0.06,199.07,199.06,12.98461362]
[1753161827969,0.06,199.07,199.06,0.7]
[1753161828155,0.06,199.07,199.06,7.26100265]
[1753161828333,0.06,199.07,199.06,44.66100265]
[1753161828539,0.06,199.07,199.06,45.36100265]
[1753161829935,0.06,199.07,199.06,44.66100265]
[1753161830136,0.06,199.07,199.06,7.26100265]
[1753161830352,0.06,199.07,199.06,44.66100265]
[1753161830837,0.06,199.07,199.06,38.1]
[1753161831048,0.06,199.07,199.06,44.66100265]
[1753161831342,0.06,199.07,199.04,26.0]
[1753161831543,0.72,199.06,198.99,0.7]
[1753161831744,0.72,199.06,199.0,7.26100265]
[1753161831948,5.02386335,199.05,199.0,44.66100265]
[1753161832137,0.72,199.04,199.0,44.66100265]
[1753161833153,0.72,199.03,199.0,37.4]
[1753161833340,0.72,199.02,198.98,7.26100265]
[1753161833957,5.74386335,199.05,199.0,7.26100265]
[1753161834554,0.72,199.04,198.99,7.26100265]
[1753161834760,7.26100265,199.0,198.91,7.26100265]
[1753161834968,7.26100265,198.97,198.9,44.64100265]
[1753161835175,6.7232,198.99,198.89,0.03]
[1753161835176,0.72,198.96,198.89,0.03]
[1753161835346,7.26100265,198.94,198.89,0.03]
[1753161835677,0.72,198.93,198.89,0.03]
[1753161836148,0.72,198.93,198.91,0.03]
[1753161836149,5.74713429,198.93,198.91,0.03]
[1753161836353,0.72,198.96,198.91,0.03]
[1753161836553,7.98100265,198.96,198.91,0.03]
[1753161836763,0.72,198.95,198.91,0.03]
[1753161837250,7.26100265,198.96,198.91,0.03]
[1753161837451,5.02664119,198.94,198.91,0.03]
[1753161837848,0.72,198.93,198.91,0.03]
[1753161838972,7.98100265,198.98,198.91,7.29100265]
[1753161839474,6.0032,198.99,198.94,7.26100265]
[1753161839769,0.72,198.98,198.93,7.26100265]
[1753161839940,18.28982251,198.99,198.92,44.66100265]
[1753161840141,0.72,198.97,198.92,37.4]
[1753161840369,0.72,198.96,198.92,37.4]
[1753161840571,7.26100265,198.93,198.91,0.03]
[1753161840768,7.26100265,198.92,198.91,0.03]
[1753161840965,7.98100265,198.92,198.91,0.03]
[1753161841145,1.5717,198.91,198.89,0.03]
[1753161841341,16.78468397,198.89,198.85,0.03]
[1753161841658,12.28916033,198.88,198.85,0.03]
[1753161841847,5.74815768,198.88,198.85,0.03]
[1753161842274,7.98100265,198.87,198.85,0.03]
[1753161842474,7.26100265,198.86,198.85,0.03]
[1753161842641,7.98100265,198.86,198.85,0.03]
[1753161842842,7.98100265,198.86,198.77,37.4]
[1753161843083,7.26100265,198.81,198.77,37.4]
[1753161843248,7.26100265,198.81,198.74,15.91556681]
[1753161843249,0.72,198.8,198.74,15.91556681]
[1753161843445,0.72,198.8,198.75,10.85387181]
[1753161843969,0.72,198.79,198.74,10.88387181]
[1753161844144,0.72,198.79,198.74,0.03]
[1753161844145,0.72,198.78,198.74,0.03]
[1753161844549,11.57387181,198.77,198.74,0.03]
[1753161844962,17.27947181,198.78,198.74,0.03]
[1753161845278,6.4256,198.78,198.74,0.03]
[1753161845482,0.72,198.77,198.74,0.03]
[1753161845668,10.85387181,198.75,198.74,0.03]
[1753161845843,15.88531835,198.75,198.74,0.03]
[1753161846048,16.60531835,198.75,198.74,0.03]
[1753161846477,33.39000232,198.75,198.74,0.03]
[1753161846663,33.39000232,198.75,198.71,0.2]
[1753161846664,16.78468397,198.74,198.71,0.2]
[1753161846859,27.63855578,198.72,198.71,0.2]
[1753161847280,28.35855578,198.72,198.71,0.2]
[1753161847578,27.63855578,198.71,198.57,37.4]
[1753161847793,15.88868328,198.62,198.57,37.4]
[1753161847946,15.88868328,198.62,198.55,10.85387181]
[1753161848153,11.54387181,198.61,198.54,10.85387181]
[1753161848346,11.54387181,198.61,198.53,0.7]
[1753161848347,10.85387181,198.59,198.52,37.4]
[1753161848866,11.54387181,198.59,198.52,37.4]
[1753161849277,11.54387181,198.59,198.52,48.25387181]
[1753161849573,11.54387181,198.59,198.51,10.85387181]
[1753161849875,16.57937208,198.59,198.52,10.85387181]
[1753161850255,16.57937208,198.59,198.52,26.0]
[1753161850449,33.36405605,198.59,198.5,0.03]
[1753161850652,16.57937208,198.59,198.5,10.88387181]
[1753161850853,11.54387181,198.59,198.51,10.85387181]
[1753161851385,33.36405605,198.59,198.5,0.03]
[1753161851761,70.78405605,198.59,198.5,0.03]
[1753161852166,16.78468397,198.58,198.5,0.03]
[1753161852467,10.85387181,198.51,198.5,0.03]
[1753161853005,10.85387181,198.53,198.5,0.03]
[1753161853162,10.85387181,198.52,198.5,0.03]
[1753161853361,0.69,198.52,198.5,0.03]
[1753161853562,10.85387181,198.53,198.5,0.03]
[1753161853864,0.69,198.55,198.5,0.03]
[1753161854178,0.69,198.58,198.5,0.74]
[1753161854382,10.85387181,198.56,198.5,0.74]
[1753161854702,37.44,198.61,198.5,0.03]
[1753161854703,10.85387181,198.54,198.5,0.03]
[1753161854984,10.85387181,198.51,198.5,0.03]
[1753161855379,34.63965578,198.51,198.46,0.03]
[1753161855579,27.63855578,198.47,198.46,0.03]
[1753161855781,32.67710064,198.47,198.46,0.03]
[1753161855980,33.36710064,198.47,198.46,0.03]
[1753161856171,16.78468397,198.46,198.42,2.98329646]
[1753161856381,17.47468397,198.46,198.42,0.03]
[1753161856584,5.03854486,198.47,198.42,0.03]
[1753161856585,42.47854486,198.47,198.42,0.03]
[1753161856795,15.8924587,198.47,198.42,0.03]
[1753161856966,6.3111,198.51,198.42,0.03]
[1753161856967,6.3111,198.51,198.43,0.71]
[1753161857165,6.3111,198.51,198.45,10.85387181]
[1753161857369,6.3111,198.51,198.43,0.71]
[1753161857575,6.3111,198.51,198.46,10.85387181]
[1753161857777,10.85387181,198.53,198.46,11.56387181]
[1753161857980,15.89096613,198.53,198.46,11.56387181]
[1753161858297,10.85387181,198.53,198.47,10.85387181]
[1753161858478,6.5167,198.56,198.49,10.85387181]
[1753161858674,6.5167,198.56,198.5,10.85387181]
[1753161858891,10.85387181,198.55,198.48,0.71]
[1753161859069,10.85387181,198.55,198.48,11.56387181]
[1753161859294,11.54387181,198.55,198.48,10.85387181]
[1753161859489,0.69,198.54,198.46,5.0387804]
[1753161859828,10.85387181,198.59,198.52,10.85387181]
[1753161859988,10.85387181,198.58,198.51,11.56387181]
[1753161860183,0.69,198.59,198.5,10.85387181]
[1753161860424,10.85387181,198.54,198.48,0.71]
[1753161860722,10.85387181,198.5,198.41,0.71]
[1753161860885,10.85387181,198.48,198.41,11.56387181]
[1753161861089,10.85387181,198.47,198.41,11.56387181]
[1753161861286,10.85387181,198.46,198.38,5.78059027]
[1753161861594,10.85387181,198.44,198.38,0.74]
[1753161861798,6.5616,198.49,198.38,0.03]
[1753161861799,11.54387181,198.43,198.38,0.03]
[1753161861992,0.69,198.43,198.38,0.03]
[1753161862190,16.58343236,198.43,198.38,0.03]
[1753161862416,5.03956055,198.43,198.38,0.03]
[1753161862712,10.85387181,198.43,198.38,0.03]
[1753161862922,10.85387181,198.48,198.41,10.85387181]
[1753161863097,59.89351654,198.49,198.42,11.59387181]
[1753161863296,10.85387181,198.48,198.42,0.74]
[1753161863502,10.85387181,198.47,198.42,0.03]
[1753161863892,10.85387181,198.47,198.39,26.71]
[1753161863893,10.85387181,198.47,198.41,10.85387181]
[1753161864100,10.85387181,198.48,198.41,15.89378993]
[1753161864513,44.0016,198.49,198.43,10.85387181]
[1753161864815,10.85387181,198.52,198.45,10.85387181]
[1753161864993,10.85387181,198.52,198.45,0.71]
[1753161865196,10.85387181,198.5,198.42,0.71]
[1753161865419,10.85387181,198.49,198.42,11.56387181]
[1753161865810,10.85387181,198.5,198.43,10.85387181]
[1753161866213,5.03778337,198.5,198.44,10.85387181]
[1753161866393,15.89165518,198.5,198.44,10.85387181]
[1753161866592,15.89165518,198.5,198.42,0.71]
[1753161866593,15.89165518,198.5,198.43,10.85387181]
[1753161866795,5.03778337,198.5,198.44,10.85387181]
[1753161867107,15.89134876,198.52,198.45,10.85387181]
[1753161867503,15.89134876,198.52,198.42,5.74970136]
[1753161867709,10.85387181,198.51,198.44,10.85387181]
[1753161867908,10.85387181,198.49,198.42,11.56387181]
[1753161868429,10.85387181,198.45,198.38,49.05387181]
[1753161868601,15.89241667,198.47,198.4,10.85387181]
[1753161869316,10.85387181,198.46,198.39,10.85387181]
[1753161870226,5.03930659,198.44,198.38,0.03]
[1753161871148,15.8931784,198.44,198.38,0.03]
[1753161871531,29.37925573,198.5,198.4,10.85387181]
[1753161871722,38.15,198.49,198.4,10.85387181]
[1753161871930,11.54387181,198.53,198.46,10.85387181]
[1753161872144,10.85387181,198.52,198.45,10.85387181]
[1753161872645,15.89138302,198.52,198.46,10.85387181]
[1753161872821,5.03751121,198.52,198.46,10.85387181]
[1753161873028,10.85387181,198.56,198.49,10.85387181]
[1753161873228,6.3106,198.59,198.54,10.85387181]
[1753161873432,2.341,198.62,198.42,17.8016]
[1753161873433,0.69,198.62,198.55,0.71]
[1753161873653,5.0349932,198.61,198.55,11.56387181]
[1753161874422,15.88886501,198.61,198.55,0.71]
[1753161874619,15.88886501,198.61,198.55,11.56387181]
[1753161875040,28.47634801,198.61,198.51,26.0]
[1753161875239,10.85387181,198.55,198.48,37.46]
[1753161875457,10.85387181,198.54,198.47,16.60237729]
[1753161875755,5.03702211,198.53,198.47,11.56387181]
[1753161875932,10.85387181,198.51,198.43,0.71]
[1753161876132,10.85387181,198.51,198.43,11.56387181]
[1753161876340,10.85387181,198.51,198.45,10.85387181]
[1753161876547,10.85387181,198.5,198.43,11.56387181]
[1753161876850,10.85387181,198.49,198.42,10.85387181]
[1753161877730,5.03829101,198.48,198.42,10.85387181]
[1753161877929,5.03829101,198.48,198.4,5.75030271]
[1753161878153,5.03829101,198.48,198.42,10.85387181]
[1753161878355,15.89216282,198.48,198.39,37.46]
[1753161878549,10.85387181,198.47,198.38,5.07076598]
[1753161878773,10.85387181,198.47,198.4,11.55387181]
[1753161879158,5.0379898,198.5,198.45,10.85387181]
[1753161879365,7.0106,198.53,198.47,10.85387181]
[1753161879563,5.03676352,198.55,198.49,10.85387181]
[1753161879778,21.8211987,198.55,198.47,5.03854486]
[1753161879981,21.8211987,198.55,198.49,10.85387181]
[1753161880278,5.03651473,198.55,198.5,10.85387181]
[1753161880585,11.55387181,198.57,198.5,10.85387181]
[1753161880586,16.59008504,198.57,198.5,11.55387181]
[1753161880759,16.84468397,198.56,198.5,11.55387181]
[1753161881275,16.84468397,198.56,198.5,0.7]
[1753161881487,21.8811453,198.56,198.47,5.73854486]
[1753161881662,21.8811453,198.56,198.5,10.85387181]